[Event "Early Titled Tuesday Blitz | February 8 2022"]
[White "Sharapov, Evgeny"]
[Black "Barp, Alberto"]
[WhiteFideId "14103133"]
[BlackFideId "872555"]
[WhiteElo "2367"]
[BlackElo "2229"]
[Result "0-1"]
[Round "10"]
[TimeControl "180+1"]
[Date "2022.02.08"]
[WhiteClock "0:00:53"]
[BlackClock "0:01:17"]

1. e4 {[%clk 0:02:59]}  c6 {[%clk 0:02:57]} 2. d4 {[%clk 0:02:59]}  d5 {[%clk 0:02:57]} 3. Nc3 {[%clk 0:02:59]}  dxe4 {[%clk 0:02:55]} 4. Nxe4 {[%clk 0:02:58]}  Bf5 {[%clk 0:02:56]} 5. Ng3 {[%clk 0:02:58]}  Bg6 {[%clk 0:02:56]} 6. h4 {[%clk 0:02:58]}  h6 {[%clk 0:02:57]} 7. Nf3 {[%clk 0:02:58]}  Nd7 {[%clk 0:02:57]} 8. h5 {[%clk 0:02:57]}  Bh7 {[%clk 0:02:57]} 9. Bd3 {[%clk 0:02:57]}  Bxd3 {[%clk 0:02:57]} 10. Qxd3 {[%clk 0:02:58]}  e6 {[%clk 0:02:56]} 11. Bd2 {[%clk 0:02:58]}  Ngf6 {[%clk 0:02:52]} 12. O-O-O {[%clk 0:02:57]}  Bd6 {[%clk 0:02:50]} 13. Ne4 {[%clk 0:02:55]}  Nxe4 {[%clk 0:02:50]} 14. Qxe4 {[%clk 0:02:55]}  Nf6 {[%clk 0:02:51]} 15. Qe2 {[%clk 0:02:54]}  Bc7 {[%clk 0:02:52]} 16. Kb1 {[%clk 0:02:52]}  Qd5 {[%clk 0:02:52]} 17. c4 {[%clk 0:02:45]}  Qe4+ {[%clk 0:02:50]} 18. Qxe4 {[%clk 0:02:45]}  Nxe4 {[%clk 0:02:51]} 19. Be3 {[%clk 0:02:44]}  f5 {[%clk 0:02:42]} 20. Nd2 {[%clk 0:02:42]}  Nf6 {[%clk 0:02:35]} 21. f3 {[%clk 0:02:40]}  O-O-O {[%clk 0:02:21]} 22. Nb3 {[%clk 0:02:33]}  Rhe8 {[%clk 0:02:10]} 23. Bf2 {[%clk 0:02:27]}  b6 {[%clk 0:02:06]} 24. Bh4 {[%clk 0:02:22]}  Rd7 {[%clk 0:01:56]} 25. Bxf6 {[%clk 0:01:55]}  gxf6 {[%clk 0:01:57]} 26. g4 {[%clk 0:01:53]}  fxg4 {[%clk 0:01:54]} 27. fxg4 {[%clk 0:01:53]}  Rg7 {[%clk 0:01:55]} 28. Rhg1 {[%clk 0:01:50]}  Bd8 {[%clk 0:01:54]} 29. d5 {[%clk 0:01:40]}  exd5 {[%clk 0:01:51]} 30. cxd5 {[%clk 0:01:40]}  c5 {[%clk 0:01:52]} 31. Nd2 {[%clk 0:01:31]}  Reg8 {[%clk 0:01:48]} 32. Ne4 {[%clk 0:01:25]}  Rxg4 {[%clk 0:01:44]} 33. Rxg4 {[%clk 0:01:24]}  Rxg4 {[%clk 0:01:45]} 34. Nd6+ {[%clk 0:01:23]}  Kd7 {[%clk 0:01:45]} 35. Nf7 {[%clk 0:01:18]}  Rh4 {[%clk 0:01:43]} 36. Rg1 {[%clk 0:01:06]}  Rxh5 {[%clk 0:01:26]} 37. Rg7 {[%clk 0:01:03]}  Be7 {[%clk 0:01:24]} 38. Rh7 {[%clk 0:00:53]}  Rxd5 {[%clk 0:01:19]} 39. Nxh6 {[%clk 0:00:53]}  Rh5 {[%clk 0:01:17]} 0-1


[Site "https://www.chess.com"]

[Event "Early Titled Tuesday Blitz | February 8 2022"]
[White "Shevchenko, Kirill"]
[Black "Sarana, Alexey"]
[WhiteFideId "14129574"]
[BlackFideId "24133795"]
[WhiteElo "2624"]
[BlackElo "2665"]
[Result "1-0"]
[Round "10"]
[TimeControl "180+1"]
[Date "2022.02.08"]
[WhiteClock "0:01:36"]
[BlackClock "0:00:18"]

1. e4 {[%clk 0:03:00]}  c5 {[%clk 0:03:00]} 2. c3 {[%clk 0:03:01]}  d5 {[%clk 0:03:00]} 3. exd5 {[%clk 0:03:01]}  Qxd5 {[%clk 0:03:01]} 4. d4 {[%clk 0:03:01]}  Nc6 {[%clk 0:03:01]} 5. Nf3 {[%clk 0:03:01]}  Bf5 {[%clk 0:03:01]} 6. Be2 {[%clk 0:03:01]}  Nf6 {[%clk 0:02:57]} 7. c4 {[%clk 0:02:50]}  Qd6 {[%clk 0:02:47]} 8. d5 {[%clk 0:02:47]}  Ne5 {[%clk 0:02:45]} 9. Nc3 {[%clk 0:02:42]}  a6 {[%clk 0:02:43]} 10. O-O {[%clk 0:02:40]}  g6 {[%clk 0:02:41]} 11. Nxe5 {[%clk 0:02:32]}  Qxe5 {[%clk 0:02:41]} 12. Re1 {[%clk 0:02:32]}  Bg7 {[%clk 0:02:38]} 13. Bd3 {[%clk 0:02:31]}  Qd4 {[%clk 0:02:23]} 14. Bxf5 {[%clk 0:02:31]}  gxf5 {[%clk 0:02:19]} 15. Qa4+ {[%clk 0:02:24]}  Kf8 {[%clk 0:02:16]} 16. Be3 {[%clk 0:02:24]}  Qh4 {[%clk 0:02:15]} 17. Bxc5 {[%clk 0:02:23]}  Ne4 {[%clk 0:01:48]} 18. Nxe4 {[%clk 0:02:21]}  fxe4 {[%clk 0:01:49]} 19. Qd7 {[%clk 0:02:21]}  Be5 {[%clk 0:01:41]} 20. g3 {[%clk 0:02:21]}  Rg8 {[%clk 0:01:40]} 21. Qf5 {[%clk 0:02:10]}  Bd6 {[%clk 0:00:28]} 22. Bxd6 {[%clk 0:02:06]}  exd6 {[%clk 0:00:29]} 23. Rxe4 {[%clk 0:02:07]}  Qg5 {[%clk 0:00:28]} 24. Qxg5 {[%clk 0:02:06]}  Rxg5 {[%clk 0:00:27]} 25. Rae1 {[%clk 0:02:05]}  b5 {[%clk 0:00:28]} 26. f4 {[%clk 0:02:01]}  Rh5 {[%clk 0:00:28]} 27. b3 {[%clk 0:01:55]}  bxc4 {[%clk 0:00:28]} 28. bxc4 {[%clk 0:01:56]}  Rb8 {[%clk 0:00:28]} 29. R1e2 {[%clk 0:01:53]}  Rb4 {[%clk 0:00:28]} 30. Kg2 {[%clk 0:01:51]}  Ra4 {[%clk 0:00:28]} 31. h4 {[%clk 0:01:47]}  Rh6 {[%clk 0:00:23]} 32. f5 {[%clk 0:01:38]}  Rh5 {[%clk 0:00:19]} 33. f6 {[%clk 0:01:36]}  Re5 {[%clk 0:00:17]} 34. Rxe5 {[%clk 0:01:36]}  dxe5 {[%clk 0:00:18]} 35. c5 {[%clk 0:01:37]}  Rc4 {[%clk 0:00:17]} 36. c6 {[%clk 0:01:36]}  e4 {[%clk 0:00:18]} 37. Rb2 {[%clk 0:01:36]} 1-0


[Site "https://www.chess.com"]

[Event "Early Titled Tuesday Blitz | February 8 2022"]
[White "Shimelkov, Vasiliy"]
[Black "Osmak, Yuliia"]
[WhiteFideId "13701630"]
[BlackFideId "14101602"]
[WhiteElo "2073"]
[BlackElo "2302"]
[Result "1-0"]
[Round "10"]
[TimeControl "180+1"]
[Date "2022.02.08"]
[WhiteClock "0:00:23"]
[BlackClock "0:00:32"]

1. d4 {[%clk 0:03:00]}  d6 {[%clk 0:02:57]} 2. Nf3 {[%clk 0:03:00]}  Bg4 {[%clk 0:02:56]} 3. c4 {[%clk 0:02:58]}  Bxf3 {[%clk 0:02:54]} 4. exf3 {[%clk 0:02:58]}  c6 {[%clk 0:02:52]} 5. Be2 {[%clk 0:02:58]}  e6 {[%clk 0:02:51]} 6. Be3 {[%clk 0:02:57]}  d5 {[%clk 0:02:51]} 7. O-O {[%clk 0:02:55]}  Nf6 {[%clk 0:02:50]} 8. c5 {[%clk 0:02:52]}  Nbd7 {[%clk 0:02:48]} 9. b4 {[%clk 0:02:50]}  Be7 {[%clk 0:02:46]} 10. a4 {[%clk 0:02:48]}  e5 {[%clk 0:02:43]} 11. dxe5 {[%clk 0:02:38]}  Nxe5 {[%clk 0:02:43]} 12. Bd4 {[%clk 0:02:37]}  Ng6 {[%clk 0:02:38]} 13. Qd2 {[%clk 0:02:34]}  O-O {[%clk 0:02:37]} 14. Nc3 {[%clk 0:02:27]}  Nd7 {[%clk 0:02:34]} 15. f4 {[%clk 0:02:24]}  Bf6 {[%clk 0:02:31]} 16. g3 {[%clk 0:02:16]}  Re8 {[%clk 0:02:28]} 17. Bf3 {[%clk 0:02:13]}  Ngf8 {[%clk 0:02:26]} 18. f5 {[%clk 0:02:05]}  Ne5 {[%clk 0:02:15]} 19. Bg2 {[%clk 0:02:01]}  Nfd7 {[%clk 0:02:12]} 20. Rfe1 {[%clk 0:01:54]}  Nc4 {[%clk 0:01:59]} 21. Qf4 {[%clk 0:01:47]}  Bxd4 {[%clk 0:01:52]} 22. Qxd4 {[%clk 0:01:45]}  Qf6 {[%clk 0:01:49]} 23. Qxf6 {[%clk 0:01:34]}  Nxf6 {[%clk 0:01:50]} 24. b5 {[%clk 0:01:28]}  Nd7 {[%clk 0:01:41]} 25. bxc6 {[%clk 0:01:26]}  bxc6 {[%clk 0:01:41]} 26. Nxd5 {[%clk 0:01:18]}  cxd5 {[%clk 0:01:38]} 27. Bxd5 {[%clk 0:01:16]}  Nce5 {[%clk 0:01:35]} 28. Bxa8 {[%clk 0:01:14]}  Rxa8 {[%clk 0:01:36]} 29. Re3 {[%clk 0:01:05]}  Rc8 {[%clk 0:01:31]} 30. Rc1 {[%clk 0:01:02]}  f6 {[%clk 0:01:28]} 31. c6 {[%clk 0:00:59]}  Rxc6 {[%clk 0:01:26]} 32. Rxc6 {[%clk 0:00:57]}  Nxc6 {[%clk 0:01:27]} 33. Re8+ {[%clk 0:00:55]}  Kf7 {[%clk 0:01:25]} 34. Rc8 {[%clk 0:00:56]}  Nd4 {[%clk 0:01:11]} 35. Rc7 {[%clk 0:00:54]}  Ke7 {[%clk 0:01:08]} 36. Rxa7 {[%clk 0:00:54]}  Nxf5 {[%clk 0:01:08]} 37. a5 {[%clk 0:00:52]}  Nd4 {[%clk 0:01:07]} 38. a6 {[%clk 0:00:51]}  Nc6 {[%clk 0:01:05]} 39. Rc7 {[%clk 0:00:49]}  Kd6 {[%clk 0:01:03]} 40. a7 {[%clk 0:00:48]}  Nb6 {[%clk 0:00:52]} 41. Rxg7 {[%clk 0:00:45]}  h5 {[%clk 0:00:51]} 42. Rb7 {[%clk 0:00:42]}  Na8 {[%clk 0:00:48]} 43. Rb8 {[%clk 0:00:41]}  Nc7 {[%clk 0:00:39]} 44. a8=Q {[%clk 0:00:38]}  Nxa8 {[%clk 0:00:38]} 45. Rxa8 {[%clk 0:00:38]}  Ne5 {[%clk 0:00:39]} 46. Rh8 {[%clk 0:00:36]}  h4 {[%clk 0:00:37]} 47. f4 {[%clk 0:00:28]}  Ng6 {[%clk 0:00:32]} 48. Rh6 {[%clk 0:00:23]} 1-0


[Site "https://www.chess.com"]

[Event "Early Titled Tuesday Blitz | February 8 2022"]
[White "Shton, Roman"]
[Black "Hamley, Ryan"]
[WhiteFideId "14137461"]
[BlackFideId "30959497"]
[WhiteElo "2038"]
[BlackElo "2473"]
[Result "0-1"]
[Round "10"]
[TimeControl "180+1"]
[Date "2022.02.08"]
[WhiteClock "0:00:10"]
[BlackClock "0:00:08"]

1. d4 {[%clk 0:03:00]}  g6 {[%clk 0:02:55]} 2. e4 {[%clk 0:03:00]}  Bg7 {[%clk 0:02:56]} 3. Nf3 {[%clk 0:03:00]}  c6 {[%clk 0:02:56]} 4. c3 {[%clk 0:02:56]}  d6 {[%clk 0:02:56]} 5. Bc4 {[%clk 0:02:56]}  Nf6 {[%clk 0:02:56]} 6. Qe2 {[%clk 0:02:56]}  O-O {[%clk 0:02:54]} 7. e5 {[%clk 0:02:55]}  dxe5 {[%clk 0:02:54]} 8. dxe5 {[%clk 0:02:56]}  Nd5 {[%clk 0:02:55]} 9. O-O {[%clk 0:02:56]}  b5 {[%clk 0:02:47]} 10. Bb3 {[%clk 0:02:55]}  h6 {[%clk 0:02:38]} 11. a4 {[%clk 0:02:52]}  b4 {[%clk 0:02:33]} 12. Rd1 {[%clk 0:02:51]}  Qc7 {[%clk 0:02:24]} 13. c4 {[%clk 0:02:46]}  Nb6 {[%clk 0:02:20]} 14. a5 {[%clk 0:02:46]}  N6d7 {[%clk 0:02:17]} 15. e6 {[%clk 0:02:43]}  Nc5 {[%clk 0:02:17]} 16. exf7+ {[%clk 0:02:42]}  Rxf7 {[%clk 0:02:16]} 17. Bc2 {[%clk 0:02:38]}  Bf5 {[%clk 0:02:13]} 18. Be3 {[%clk 0:02:30]}  Nbd7 {[%clk 0:02:12]} 19. Bd4 {[%clk 0:02:22]}  e5 {[%clk 0:02:06]} 20. Bxf5 {[%clk 0:02:17]}  gxf5 {[%clk 0:02:03]} 21. Be3 {[%clk 0:02:08]}  f4 {[%clk 0:01:41]} 22. Bxc5 {[%clk 0:02:03]}  Nxc5 {[%clk 0:01:41]} 23. Nbd2 {[%clk 0:01:57]}  e4 {[%clk 0:01:28]} 24. Nxe4 {[%clk 0:01:51]}  Re7 {[%clk 0:01:21]} 25. Nfd2 {[%clk 0:01:47]}  Rae8 {[%clk 0:01:19]} 26. f3 {[%clk 0:01:46]}  Bxb2 {[%clk 0:01:11]} 27. Rab1 {[%clk 0:01:34]}  Bc3 {[%clk 0:01:12]} 28. Qf2 {[%clk 0:01:34]}  Nd3 {[%clk 0:00:31]} 29. Qh4 {[%clk 0:01:29]}  Rg7 {[%clk 0:00:30]} 30. Nf1 {[%clk 0:01:06]}  Rxe4 {[%clk 0:00:26]} 31. Rxd3 {[%clk 0:01:00]}  Re2 {[%clk 0:00:21]} 32. g3 {[%clk 0:00:45]}  fxg3 {[%clk 0:00:20]} 33. Nxg3 {[%clk 0:00:44]}  Kh7 {[%clk 0:00:16]} 34. Rf1 {[%clk 0:00:26]}  Qe7 {[%clk 0:00:12]} 35. Qxe7 {[%clk 0:00:23]}  Rexe7 {[%clk 0:00:13]} 36. Kf2 {[%clk 0:00:22]}  Rgf7 {[%clk 0:00:11]} 37. Rfd1 {[%clk 0:00:20]}  Kg6 {[%clk 0:00:05]} 38. Rd6+ {[%clk 0:00:19]}  Rf6 {[%clk 0:00:05]} 39. Rxf6+ {[%clk 0:00:18]}  Kxf6 {[%clk 0:00:06]} 40. Ne4+ {[%clk 0:00:18]}  Kf5 {[%clk 0:00:06]} 41. Nxc3 {[%clk 0:00:18]}  bxc3 {[%clk 0:00:07]} 42. Rc1 {[%clk 0:00:18]}  Re5 {[%clk 0:00:07]} 43. Rxc3 {[%clk 0:00:18]}  Rxa5 {[%clk 0:00:08]} 44. Rb3 {[%clk 0:00:18]}  Ra4 {[%clk 0:00:08]} 45. Rb7 {[%clk 0:00:17]}  Kf4 {[%clk 0:00:05]} 46. Rf7+ {[%clk 0:00:16]}  Kg5 {[%clk 0:00:05]} 47. Rc7 {[%clk 0:00:16]}  Rxc4 {[%clk 0:00:05]} 48. Rxa7 {[%clk 0:00:16]}  h5 {[%clk 0:00:04]} 49. Kg3 {[%clk 0:00:15]}  h4+ {[%clk 0:00:05]} 50. Kh3 {[%clk 0:00:15]}  Rc3 {[%clk 0:00:05]} 51. Kg2 {[%clk 0:00:14]}  c5 {[%clk 0:00:04]} 52. Rc7 {[%clk 0:00:13]}  c4 {[%clk 0:00:04]} 53. Rc5+ {[%clk 0:00:12]}  Kf4 {[%clk 0:00:04]} 54. Rc8 {[%clk 0:00:11]}  Rc2+ {[%clk 0:00:04]} 55. Kh3 {[%clk 0:00:11]}  Kxf3 {[%clk 0:00:05]} 56. Rf8+ {[%clk 0:00:10]}  Ke4 {[%clk 0:00:05]} 57. Re8+ {[%clk 0:00:09]}  Kd3 {[%clk 0:00:05]} 58. Rd8+ {[%clk 0:00:08]}  Kc3 {[%clk 0:00:04]} 59. Rh8 {[%clk 0:00:08]}  Rd2 {[%clk 0:00:03]} 60. Rxh4 {[%clk 0:00:09]}  Rd3+ {[%clk 0:00:03]} 61. Kg2 {[%clk 0:00:09]}  Kb3 {[%clk 0:00:03]} 62. Rh8 {[%clk 0:00:09]}  c3 {[%clk 0:00:03]} 63. Rb8+ {[%clk 0:00:10]}  Kc2 {[%clk 0:00:04]} 64. h4 {[%clk 0:00:10]}  Kd2 {[%clk 0:00:05]} 65. h5 {[%clk 0:00:09]}  c2 {[%clk 0:00:05]} 66. Rc8 {[%clk 0:00:09]}  c1=Q {[%clk 0:00:05]} 67. Rxc1 {[%clk 0:00:08]}  Kxc1 {[%clk 0:00:06]} 68. h6 {[%clk 0:00:08]}  Rd6 {[%clk 0:00:06]} 69. h7 {[%clk 0:00:09]}  Rh6 {[%clk 0:00:07]} 70. h8=Q {[%clk 0:00:10]}  Rxh8 {[%clk 0:00:08]} 71. Kf2 {[%clk 0:00:10]}  Re8 {[%clk 0:00:08]} 0-1


[Site "https://www.chess.com"]

[Event "Early Titled Tuesday Blitz | February 8 2022"]
[White "Srihari L R"]
[Black "Fier, Alexandr"]
[WhiteFideId "46617116"]
[BlackFideId "2107139"]
[WhiteElo "2121"]
[BlackElo "2569"]
[Result "1-0"]
[Round "10"]
[TimeControl "180+1"]
[Date "2022.02.08"]
[WhiteClock "0:00:05"]
[BlackClock "0:00:08"]

1. d4 {[%clk 0:03:00]}  Nf6 {[%clk 0:03:00]} 2. c4 {[%clk 0:02:57]}  c5 {[%clk 0:03:01]} 3. Nf3 {[%clk 0:02:57]}  cxd4 {[%clk 0:03:00]} 4. Nxd4 {[%clk 0:02:56]}  Nc6 {[%clk 0:03:01]} 5. Nc3 {[%clk 0:02:55]}  e6 {[%clk 0:03:00]} 6. g3 {[%clk 0:02:51]}  Qb6 {[%clk 0:02:59]} 7. Nb3 {[%clk 0:02:50]}  Ne5 {[%clk 0:02:57]} 8. Bg2 {[%clk 0:02:50]}  Nxc4 {[%clk 0:02:57]} 9. e4 {[%clk 0:02:47]}  d6 {[%clk 0:02:55]} 10. Qe2 {[%clk 0:02:46]}  Ne5 {[%clk 0:02:51]} 11. Be3 {[%clk 0:02:44]}  Qd8 {[%clk 0:02:51]} 12. h3 {[%clk 0:02:43]}  Bd7 {[%clk 0:02:51]} 13. O-O {[%clk 0:02:40]}  Rc8 {[%clk 0:02:51]} 14. Rac1 {[%clk 0:02:30]}  Be7 {[%clk 0:02:50]} 15. Nb5 {[%clk 0:02:26]}  a6 {[%clk 0:02:45]} 16. Rxc8 {[%clk 0:02:24]}  Bxc8 {[%clk 0:02:42]} 17. N5d4 {[%clk 0:02:20]}  O-O {[%clk 0:02:41]} 18. f4 {[%clk 0:02:13]}  Nc6 {[%clk 0:02:41]} 19. Nxc6 {[%clk 0:02:13]}  bxc6 {[%clk 0:02:41]} 20. Nd4 {[%clk 0:02:14]}  Bd7 {[%clk 0:02:39]} 21. Qxa6 {[%clk 0:02:13]}  Qa8 {[%clk 0:02:30]} 22. Qxa8 {[%clk 0:02:12]}  Rxa8 {[%clk 0:02:31]} 23. a3 {[%clk 0:02:12]}  d5 {[%clk 0:02:31]} 24. e5 {[%clk 0:02:06]}  Ne8 {[%clk 0:02:31]} 25. Nb3 {[%clk 0:01:56]}  Rb8 {[%clk 0:02:28]} 26. Nc5 {[%clk 0:01:55]}  Bxc5 {[%clk 0:02:24]} 27. Bxc5 {[%clk 0:01:56]}  Rxb2 {[%clk 0:02:24]} 28. Ra1 {[%clk 0:01:52]}  Nc7 {[%clk 0:02:23]} 29. Bf1 {[%clk 0:01:50]}  Bc8 {[%clk 0:02:23]} 30. Rc1 {[%clk 0:01:44]}  Rb3 {[%clk 0:02:15]} 31. Bd6 {[%clk 0:01:41]}  Ne8 {[%clk 0:02:07]} 32. Rxc6 {[%clk 0:01:28]}  Bb7 {[%clk 0:02:06]} 33. Rc1 {[%clk 0:01:10]}  Rxg3+ {[%clk 0:02:05]} 34. Kf2 {[%clk 0:01:10]}  Rb3 {[%clk 0:02:06]} 35. a4 {[%clk 0:01:09]}  f6 {[%clk 0:01:55]} 36. a5 {[%clk 0:01:07]}  d4 {[%clk 0:01:54]} 37. a6 {[%clk 0:01:04]}  Bd5 {[%clk 0:01:47]} 38. Rc8 {[%clk 0:00:48]}  Kf7 {[%clk 0:01:46]} 39. a7 {[%clk 0:00:48]}  Rb2+ {[%clk 0:01:40]} 40. Kg3 {[%clk 0:00:48]}  g5 {[%clk 0:01:26]} 41. fxg5 {[%clk 0:00:26]}  fxe5 {[%clk 0:01:16]} 42. Bxe5 {[%clk 0:00:25]}  Ra2 {[%clk 0:01:16]} 43. Bb5 {[%clk 0:00:23]}  Kg6 {[%clk 0:00:36]} 44. Bxe8+ {[%clk 0:00:22]}  Kxg5 {[%clk 0:00:36]} 45. h4+ {[%clk 0:00:20]}  Kf5 {[%clk 0:00:36]} 46. Bxd4 {[%clk 0:00:20]}  e5 {[%clk 0:00:34]} 47. Bd7+ {[%clk 0:00:19]}  Kf6 {[%clk 0:00:31]} 48. Bc5 {[%clk 0:00:16]}  Rg2+ {[%clk 0:00:31]} 49. Kh3 {[%clk 0:00:16]}  Rd2 {[%clk 0:00:27]} 50. Rf8+ {[%clk 0:00:15]}  Kg7 {[%clk 0:00:27]} 51. Rf2 {[%clk 0:00:12]}  Rd3+ {[%clk 0:00:26]} 52. Kh2 {[%clk 0:00:12]}  Rc3 {[%clk 0:00:26]} 53. Bf8+ {[%clk 0:00:12]}  Kg8 {[%clk 0:00:21]} 54. Bh6 {[%clk 0:00:12]}  Rf3 {[%clk 0:00:20]} 55. Be6+ {[%clk 0:00:11]}  Kh8 {[%clk 0:00:17]} 56. Rb2 {[%clk 0:00:08]}  Bxe6 {[%clk 0:00:07]} 57. Rb8+ {[%clk 0:00:07]}  Bg8 {[%clk 0:00:08]} 58. a8=Q {[%clk 0:00:06]}  Rh3+ {[%clk 0:00:08]} 59. Kxh3 {[%clk 0:00:06]}  e4 {[%clk 0:00:08]} 60. Qa1# {[%clk 0:00:05]} 1-0


[Site "https://www.chess.com"]

[Event "Early Titled Tuesday Blitz | February 8 2022"]
[White "Tarasova, Viktoriya"]
[Black "Politov, Pavel Y."]
[WhiteFideId "4175840"]
[BlackFideId "24110515"]
[WhiteElo "2182"]
[BlackElo "2090"]
[Result "0-1"]
[Round "10"]
[TimeControl "180+1"]
[Date "2022.02.08"]
[WhiteClock "0:01:46"]
[BlackClock "0:01:03"]

1. d4 {[%clk 0:02:57]}  d5 {[%clk 0:02:55]} 2. c4 {[%clk 0:02:57]}  dxc4 {[%clk 0:02:55]} 3. e4 {[%clk 0:02:57]}  e5 {[%clk 0:02:53]} 4. Nf3 {[%clk 0:02:52]}  exd4 {[%clk 0:02:52]} 5. Bxc4 {[%clk 0:02:52]}  Nf6 {[%clk 0:02:39]} 6. Nbd2 {[%clk 0:02:41]}  Nc6 {[%clk 0:02:34]} 7. O-O {[%clk 0:02:38]}  Be7 {[%clk 0:02:31]} 8. Qb3 {[%clk 0:02:31]}  O-O {[%clk 0:02:29]} 9. e5 {[%clk 0:02:32]}  Ng4 {[%clk 0:02:18]} 10. e6 {[%clk 0:02:30]}  fxe6 {[%clk 0:02:15]} 11. Bxe6+ {[%clk 0:02:29]}  Kh8 {[%clk 0:02:13]} 12. Bxc8 {[%clk 0:02:16]}  Qxc8 {[%clk 0:02:10]} 13. Re1 {[%clk 0:02:12]}  Qf5 {[%clk 0:02:04]} 14. Nc4 {[%clk 0:02:04]}  Bh4 {[%clk 0:02:00]} 15. Rf1 {[%clk 0:01:56]}  Bxf2+ {[%clk 0:01:57]} 16. Rxf2 {[%clk 0:01:54]}  Nxf2 {[%clk 0:01:55]} 17. Kxf2 {[%clk 0:01:54]}  Rae8 {[%clk 0:01:49]} 18. Bd2 {[%clk 0:01:51]}  g5 {[%clk 0:01:44]} 19. h3 {[%clk 0:01:49]}  g4 {[%clk 0:01:40]} 20. hxg4 {[%clk 0:01:48]}  Qxg4 {[%clk 0:01:38]} 21. Qxb7 {[%clk 0:01:48]}  Rxf3+ {[%clk 0:01:12]} 22. gxf3 {[%clk 0:01:46]}  Qh4+ {[%clk 0:01:10]} 23. Kf1 {[%clk 0:01:47]}  Qh3+ {[%clk 0:01:08]} 24. Kf2 {[%clk 0:01:46]}  Qh2+ {[%clk 0:01:07]} 25. Kf1 {[%clk 0:01:46]}  Qe2+ {[%clk 0:01:05]} 26. Kg1 {[%clk 0:01:46]}  Rg8+ {[%clk 0:01:03]} 0-1


[Site "https://www.chess.com"]

[Event "Early Titled Tuesday Blitz | February 8 2022"]
[White "Timofeev, Artyom"]
[Black "Gelman, Alexander"]
[WhiteFideId "4140419"]
[BlackFideId "4118316"]
[WhiteElo "2583"]
[BlackElo "2375"]
[Result "1-0"]
[Round "10"]
[TimeControl "180+1"]
[Date "2022.02.08"]
[WhiteClock "0:01:15"]
[BlackClock "0:00:17"]

1. d4 {[%clk 0:03:00]}  Nf6 {[%clk 0:02:59]} 2. Nf3 {[%clk 0:03:00]}  c5 {[%clk 0:03:00]} 3. dxc5 {[%clk 0:02:55]}  e6 {[%clk 0:02:58]} 4. e3 {[%clk 0:02:53]}  Bxc5 {[%clk 0:02:55]} 5. b3 {[%clk 0:02:53]}  b6 {[%clk 0:02:51]} 6. Bb2 {[%clk 0:02:53]}  Bb7 {[%clk 0:02:52]} 7. Nbd2 {[%clk 0:02:53]}  a6 {[%clk 0:02:52]} 8. Be2 {[%clk 0:02:53]}  Be7 {[%clk 0:02:52]} 9. O-O {[%clk 0:02:53]}  Qc7 {[%clk 0:02:51]} 10. Nc4 {[%clk 0:02:52]}  d6 {[%clk 0:02:30]} 11. Qd4 {[%clk 0:02:48]}  Nbd7 {[%clk 0:02:29]} 12. Rfd1 {[%clk 0:02:48]}  d5 {[%clk 0:02:22]} 13. Nce5 {[%clk 0:02:47]}  Nc5 {[%clk 0:02:15]} 14. Qf4 {[%clk 0:02:27]}  Rc8 {[%clk 0:02:10]} 15. c4 {[%clk 0:02:15]}  O-O {[%clk 0:02:03]} 16. h3 {[%clk 0:02:08]}  dxc4 {[%clk 0:01:56]} 17. Bxc4 {[%clk 0:02:06]}  b5 {[%clk 0:01:56]} 18. Be2 {[%clk 0:02:05]}  Nce4 {[%clk 0:01:48]} 19. Rac1 {[%clk 0:01:56]}  Qa5 {[%clk 0:01:45]} 20. Rxc8 {[%clk 0:01:33]}  Rxc8 {[%clk 0:01:41]} 21. Nd7 {[%clk 0:01:33]}  Qxa2 {[%clk 0:01:22]} 22. Nxf6+ {[%clk 0:01:26]}  Bxf6 {[%clk 0:01:09]} 23. Bxf6 {[%clk 0:01:25]}  Nxf6 {[%clk 0:01:09]} 24. Qc7 {[%clk 0:01:15]}  Rf8 {[%clk 0:00:17]} 25. Qxb7 {[%clk 0:01:15]}  Qxe2 {[%clk 0:00:17]} 26. Rd2 {[%clk 0:01:15]} 1-0


[Site "https://www.chess.com"]

[Event "Early Titled Tuesday Blitz | February 8 2022"]
[White "Triapishko, Alexandr"]
[Black "Budrewicz, Krzysztof"]
[WhiteFideId "14122286"]
[BlackFideId "1127950"]
[WhiteElo "2479"]
[BlackElo "2248"]
[Result "0-1"]
[Round "10"]
[TimeControl "180+1"]
[Date "2022.02.08"]
[WhiteClock "0:00:02"]
[BlackClock "0:00:40"]

1. d4 {[%clk 0:03:00]}  Nf6 {[%clk 0:02:59]} 2. c4 {[%clk 0:03:01]}  g6 {[%clk 0:03:00]} 3. Nc3 {[%clk 0:03:01]}  Bg7 {[%clk 0:03:00]} 4. e4 {[%clk 0:03:00]}  O-O {[%clk 0:03:01]} 5. Nf3 {[%clk 0:03:00]}  d6 {[%clk 0:03:02]} 6. Be2 {[%clk 0:03:01]}  e5 {[%clk 0:03:02]} 7. dxe5 {[%clk 0:03:02]}  dxe5 {[%clk 0:03:02]} 8. Qxd8 {[%clk 0:03:03]}  Rxd8 {[%clk 0:03:02]} 9. Bg5 {[%clk 0:03:03]}  Rf8 {[%clk 0:03:01]} 10. Nd5 {[%clk 0:02:44]}  Nxd5 {[%clk 0:02:59]} 11. cxd5 {[%clk 0:02:44]}  c6 {[%clk 0:02:57]} 12. Bc4 {[%clk 0:02:43]}  cxd5 {[%clk 0:02:41]} 13. Bxd5 {[%clk 0:02:42]}  Na6 {[%clk 0:02:40]} 14. O-O-O {[%clk 0:02:33]}  Nb4 {[%clk 0:02:31]} 15. Be7 {[%clk 0:02:19]}  Nxd5 {[%clk 0:02:25]} 16. Bxf8 {[%clk 0:02:19]}  Bxf8 {[%clk 0:02:23]} 17. Rxd5 {[%clk 0:02:17]}  Be6 {[%clk 0:02:19]} 18. Rxe5 {[%clk 0:02:13]}  Bxa2 {[%clk 0:02:18]} 19. g4 {[%clk 0:00:55]}  Rc8+ {[%clk 0:02:12]} 20. Kd2 {[%clk 0:00:54]}  Bb4+ {[%clk 0:01:56]} 21. Ke3 {[%clk 0:00:51]}  Bc5+ {[%clk 0:01:50]} 22. Nd4 {[%clk 0:00:33]}  Bb6 {[%clk 0:01:36]} 23. Rb5 {[%clk 0:00:29]}  Bc4 {[%clk 0:01:24]} 24. Rxb6 {[%clk 0:00:27]}  axb6 {[%clk 0:01:24]} 25. Rc1 {[%clk 0:00:27]}  Rc5 {[%clk 0:01:20]} 26. b4 {[%clk 0:00:19]}  Rc8 {[%clk 0:01:20]} 27. Nb5 {[%clk 0:00:16]}  Rc6 {[%clk 0:01:14]} 28. Nd4 {[%clk 0:00:13]}  Rc8 {[%clk 0:01:13]} 29. f4 {[%clk 0:00:14]}  Kf8 {[%clk 0:01:10]} 30. f5 {[%clk 0:00:14]}  Ke7 {[%clk 0:01:09]} 31. e5 {[%clk 0:00:14]}  Kd7 {[%clk 0:01:05]} 32. Rd1 {[%clk 0:00:10]}  Ke7 {[%clk 0:01:05]} 33. f6+ {[%clk 0:00:09]}  Ke8 {[%clk 0:01:05]} 34. g5 {[%clk 0:00:09]}  Ra8 {[%clk 0:01:01]} 35. Rc1 {[%clk 0:00:04]}  Ra3+ {[%clk 0:01:01]} 36. Ke4 {[%clk 0:00:05]}  b5 {[%clk 0:01:01]} 37. h4 {[%clk 0:00:03]}  Rh3 {[%clk 0:01:01]} 38. Ra1 {[%clk 0:00:02]}  Rxh4+ {[%clk 0:01:01]} 39. Ke3 {[%clk 0:00:03]}  Rh3+ {[%clk 0:00:58]} 40. Kf2 {[%clk 0:00:03]}  Rd3 {[%clk 0:00:54]} 41. Ra8+ {[%clk 0:00:03]}  Kd7 {[%clk 0:00:54]} 42. Nf3 {[%clk 0:00:02]}  Bd5 {[%clk 0:00:50]} 43. Ne1 {[%clk 0:00:03]}  Rb3 {[%clk 0:00:49]} 44. Rf8 {[%clk 0:00:01]}  Ke6 {[%clk 0:00:46]} 45. Re8+ {[%clk 0:00:02]}  Kf5 {[%clk 0:00:46]} 46. Re7 {[%clk 0:00:02]}  Kxg5 {[%clk 0:00:43]} 47. Ke2 {[%clk 0:00:02]}  Kf5 {[%clk 0:00:43]} 48. Kd2 {[%clk 0:00:02]}  Be6 {[%clk 0:00:41]} 49. Nc2 {[%clk 0:00:02]}  Kxe5 {[%clk 0:00:40]} 0-1


[Site "https://www.chess.com"]